fUST/lending_fUST_20250602
["ID","MTS","AMOUNT","RATE_DAILY","PERIOD"]
[363788121,1748872240586,-430.0,0.00016572,2]
[363788122,1748872240595,-430.0,0.00016572,2]
[363788124,1748872240605,-430.0,0.00016572,2]
[363788127,1748872240615,-404.72915156,0.00016572,2]
[363788128,1748872240624,-430.0,0.00016572,2]
[363788130,1748872240634,-373.37349176,0.00016572,2]
[363788133,1748872240644,-282.37079777,0.00016572,2]
[363788135,1748872240654,-430.0,0.00016572,2]
[363788137,1748872240663,-430.0,0.00016572,2]
[363788138,1748872240672,-430.0,0.00016572,2]
[363788140,1748872240682,-430.0,0.00016572,2]
[363788142,1748872240691,-500.0,0.00016572,2]
[363788145,1748872240701,-430.0,0.00016572,2]
[363788147,1748872240711,-430.0,0.00016572,2]
[363788148,1748872240719,-430.0,0.00016572,2]
[363788150,1748872240729,-508.79372871,0.00016572,2]
[363788152,1748872240738,-430.0,0.00016572,2]
[363788154,1748872240748,-479.15278061,0.00016572,2]
[363788156,1748872240760,-430.0,0.00016572,2]
[363788158,1748872240770,-430.0,0.00016572,2]
[363788160,1748872240779,-430.0,0.00016572,2]
[363788162,1748872240789,-430.0,0.00016572,2]
[363788164,1748872240800,-430.0,0.00016572,2]
[363788166,1748872240810,-430.0,0.00016572,2]
[363788168,1748872240820,-430.0,0.00016572,2]
[363788170,1748872240830,-430.0,0.00016572,2]
[363788173,1748872240840,-432.02725354,0.00016572,2]
[363788175,1748872240850,-430.0,0.00016572,2]
[363788177,1748872240860,-434.28555124,0.00016572,2]
[363788179,1748872240869,-430.0,0.00016572,2]
[363788181,1748872240879,-430.0,0.00016572,2]
[363788183,1748872240889,-430.0,0.00016572,2]
[363788185,1748872240898,-430.0,0.00016572,2]
[363788187,1748872240908,-430.0,0.00016572,2]
[363788188,1748872240917,-430.0,0.00016572,2]
[363788189,1748872240926,-430.0,0.00016572,2]
[363788190,1748872240938,-430.0,0.00016572,2]
[363788191,1748872240948,-432.4628416,0.00016572,2]
[363788192,1748872240958,-410.52168767,0.00016572,2]
[363788193,1748872240968,-430.0,0.00016572,2]
[363788194,1748872240979,-430.0,0.00016572,2]
[363788195,1748872240988,-376.47491887,0.00016572,2]
[363788196,1748872240999,-439.69534468,0.00016572,2]
[363788197,1748872241013,-432.727996,0.00016572,2]
[363788198,1748872241023,-485.16930671,0.00016572,2]
[363788199,1748872241036,-430.0,0.00016572,2]
[363788200,1748872241046,-430.0,0.00016572,2]
[363788201,1748872241057,-430.0,0.00016572,2]
[363788202,1748872241067,-430.0,0.00016572,2]
[363788203,1748872241077,-430.0,0.00016572,2]
[363788204,1748872241086,-430.0,0.00016572,2]
[363788205,1748872241095,-340.62453092,0.00016572,2]
[363788206,1748872241106,-430.0,0.00016572,2]
[363788207,1748872241116,-440.07549382,0.00016572,2]
[363788209,1748872241126,-430.0,0.00016572,2]
[363788211,1748872241136,-430.0,0.00016572,2]
[363788213,1748872241146,-430.0,0.00016572,2]
[363788215,1748872241155,-341.91479569,0.00016572,2]
[363788217,1748872241165,-430.0,0.00016572,2]
[363788219,1748872241175,-430.0,0.00016572,2]
[363788221,1748872241184,-430.0,0.00016572,2]
[363788222,1748872241194,-430.0,0.00016572,2]
[363788223,1748872241204,-430.0,0.00016572,2]
[363788224,1748872241214,-162.30009497,0.00016572,2]
[363788226,1748872241224,-430.0,0.00016572,2]
[363788227,1748872241233,-430.0,0.00016572,2]
[363788229,1748872241243,-430.0,0.00016572,2]
[363788231,1748872241253,-430.0,0.00016572,2]
[363788232,1748872241263,-430.0,0.00016572,2]
[363788233,1748872241274,-430.0,0.00016572,2]
[363788234,1748872241283,-430.0,0.00016572,2]
[363788236,1748872241293,-430.0,0.00016572,2]
[363788238,1748872241302,-430.0,0.00016572,2]
[363788240,1748872241312,-430.0,0.00016572,2]
[363788242,1748872241322,-450.0,0.00016573,2]
[363788244,1748872241332,-430.0,0.00016573,2]
[363788246,1748872241342,-430.0,0.00016573,2]
[363788248,1748872241351,-402.87768935,0.00016573,2]
[363788249,1748872241361,-390.39084991,0.00016573,2]
[363788251,1748872241371,-190.88973835,0.00016573,2]
[363788252,1748872241382,-430.0,0.00016573,2]
[363788254,1748872241391,-502.28829755,0.00016573,2]
[363788256,1748872241400,-500.85062816,0.00016792,2]
[363788258,1748872241410,-430.0,0.00016841,2]
[363788260,1748872241420,-430.0,0.00016841,2]
[363788262,1748872241430,-1058.41,0.00016841,2]
[363788265,1748872241440,-545.86,0.00016841,2]
[363788267,1748872241450,-510.15,0.00016841,2]
[363788269,1748872241459,-575.87,0.00016841,2]
[363788271,1748872241470,-1011.77,0.00016841,2]
[363788272,1748872241480,-430.0,0.00016841,2]
[363788274,1748872241490,-430.0,0.00016842,2]
[363788276,1748872241499,-430.0,0.00016842,2]
[363788277,1748872241511,-430.0,0.00016842,2]
[363788278,1748872241522,-430.0,0.00016842,2]
[363788279,1748872241532,-430.0,0.00016842,2]
[363788281,1748872241542,-430.0,0.00016842,2]
[363788282,1748872241552,-430.0,0.00016842,2]
[363788283,1748872241562,-483.66073691,0.00016842,2]
[363788284,1748872241571,-430.0,0.00016842,2]
[363788285,1748872241581,-301.38003272,0.00016842,2]
[363788286,1748872241592,-430.0,0.00016842,2]
[363788287,1748872241602,-430.0,0.00016842,2]
[363788288,1748872241612,-453.22463869,0.00016842,2]
[363788290,1748872241623,-430.0,0.00016842,2]
[363788292,1748872241634,-440.0,0.00016842,2]
[363788294,1748872241644,-229.23705451,0.00016842,2]
[363788296,1748872241653,-430.0,0.00016842,2]
[363788298,1748872241663,-430.0,0.00016842,2]
[363788300,1748872241673,-430.0,0.00016842,2]
[363788302,1748872241682,-400.0,0.00016842,2]
[363788304,1748872241692,-430.0,0.00016842,2]
[363788306,1748872241702,-430.0,0.00016842,2]
[363788308,1748872241712,-430.0,0.00016842,2]
[363788310,1748872241721,-430.0,0.00016842,2]
[363788312,1748872241731,-430.0,0.00016842,2]
[363788314,1748872241741,-430.0,0.00016842,2]
[363788316,1748872241751,-430.0,0.00016842,2]
[363788318,1748872241763,-573.74403596,0.00016842,2]
[363788320,1748872241773,-430.0,0.00016842,2]
[363788322,1748872241783,-430.0,0.00016842,2]
[363788325,1748872241793,-430.0,0.00016842,2]
[363788327,1748872241803,-430.0,0.00016842,2]
[363788328,1748872241813,-430.0,0.00016842,2]
[363788331,1748872241823,-430.0,0.00016842,2]
[363788333,1748872241834,-340.0,0.00016842,2]
[363788335,1748872241844,-430.0,0.00016842,2]
[363788337,1748872241854,-430.0,0.00016842,2]
[363788339,1748872241865,-333.92188604,0.00016842,2]
[363788341,1748872241875,-305.04900472,0.00016842,2]
[363788343,1748872241886,-400.0,0.00016842,2]
[363788345,1748872241896,-385.12348697,0.00016842,2]
[363788347,1748872241906,-416.28705695,0.00016842,2]
[363788349,1748872241916,-430.0,0.00016842,2]
[363788351,1748872241925,-363.4170651,0.00016842,2]
[363788353,1748872241935,-430.0,0.00016842,2]
[363788355,1748872241946,-430.0,0.00016842,2]
[363788357,1748872241956,-430.0,0.00016842,2]
[363788359,1748872241967,-430.0,0.00016842,2]
[363788361,1748872241977,-430.0,0.00016842,2]
[363788363,1748872241986,-430.0,0.00016842,2]
[363788365,1748872241996,-430.0,0.00016843,2]
[363788367,1748872242010,-430.0,0.00016843,2]
[363788369,1748872242021,-430.0,0.00016843,2]
[363788371,1748872242032,-368.07866377,0.00016843,2]
[363788373,1748872242042,-370.0,0.00016843,2]
[363788375,1748872242051,-656.08,0.00016843,2]
[363788377,1748872242061,-440.0,0.00016843,2]
[363788379,1748872242071,-430.0,0.00016843,2]
[363788381,1748872242083,-430.0,0.00016843,2]
[363788383,1748872242094,-430.0,0.00016843,2]
[363788385,1748872242105,-430.0,0.00016843,2]
[363788387,1748872242114,-430.0,0.00016843,2]
[363788389,1748872242124,-430.0,0.00016843,2]
[363788391,1748872242134,-430.0,0.00016843,2]
[363788393,1748872242144,-450.75962182,0.00016843,2]
[363788395,1748872242154,-430.0,0.00016843,2]
[363788397,1748872242164,-430.0,0.00016843,2]
[363788399,1748872242174,-430.0,0.00016843,2]
[363788401,1748872242183,-430.0,0.00016843,2]
[363788403,1748872242193,-430.0,0.00016843,2]
[363788405,1748872242203,-691.05,0.00016843,2]
[363788407,1748872242212,-430.0,0.00016843,2]
[363788409,1748872242221,-454.49698717,0.00016843,2]
[363788411,1748872242231,-430.0,0.00016843,2]
[363788413,1748872242240,-430.0,0.00016843,2]
[363788415,1748872242250,-430.0,0.00016843,2]
[363788417,1748872242262,-430.0,0.00016843,2]
[363788419,1748872242272,-430.0,0.00016843,2]
[363788421,1748872242281,-500.0,0.00016843,2]
[363788423,1748872242291,-430.0,0.00016843,2]
[363788425,1748872242301,-430.0,0.00016843,2]
[363788427,1748872242310,-430.0,0.00016843,2]
[363788429,1748872242320,-430.0,0.00016843,2]
[363788431,1748872242329,-430.0,0.00016843,2]
[363788433,1748872242339,-470.0,0.00016843,2]
[363788434,1748872242348,-430.0,0.00016843,2]
[363788436,1748872242359,-430.0,0.00016843,2]
[363788439,1748872242370,-430.0,0.00016843,2]
[363788441,1748872242379,-430.0,0.00016843,2]
[363788443,1748872242389,-430.0,0.00016843,2]
[363788445,1748872242398,-1420.09,0.00016843,2]
[363788447,1748872242408,-845.14,0.00016843,2]
[363788449,1748872242417,-430.0,0.00016843,2]
[363788451,1748872242426,-430.0,0.00016844,2]
[363788453,1748872242436,-322.95901695,0.00016845,2]
[363788455,1748872242445,-430.0,0.00016845,2]
[363788457,1748872242455,-430.0,0.00016845,2]
[363788459,1748872242464,-430.0,0.00016845,2]
[363788461,1748872242474,-430.0,0.00016845,2]
[363788463,1748872242483,-430.0,0.00016845,2]
[363788465,1748872242493,-430.0,0.00016845,2]
[363788467,1748872242502,-431.49586038,0.00016845,2]
[363788479,1748872242616,-500.0,0.00016845,2]
[363788481,1748872242625,-430.0,0.00016846,2]
[363788483,1748872242635,-430.0,0.00016846,2]
[363788485,1748872242644,-459.28771871,0.00016846,2]
[363788487,1748872242654,-430.0,0.00016846,2]
[363788489,1748872242663,-430.0,0.00016846,2]
[363788491,1748872242673,-430.0,0.00016846,2]
[363788493,1748872242682,-430.0,0.00016846,2]
[363788495,1748872242691,-423.5252943,0.00016846,2]
[363788497,1748872242702,-430.0,0.00016846,2]
[363788499,1748872242712,-430.0,0.00016846,2]
[363788502,1748872242722,-430.0,0.00016846,2]
[363788504,1748872242731,-430.0,0.00016846,2]
[363788506,1748872242740,-375.98725003,0.00016846,2]
[363788507,1748872242750,-430.0,0.00016846,2]
[363788510,1748872242762,-430.0,0.00016846,2]
[363788511,1748872242771,-430.0,0.00016846,2]
[363788513,1748872242781,-430.0,0.00016846,2]
[363788515,1748872242791,-430.0,0.00016846,2]
[363788518,1748872242800,-430.0,0.00016846,2]
[363788519,1748872242810,-287.93113158,0.00016846,2]
[363788521,1748872242820,-500.0,0.00016846,2]
[363788523,1748872242829,-430.0,0.00016846,2]
[363788525,1748872242839,-430.0,0.00016846,2]
[363788528,1748872242848,-430.0,0.00016846,2]
[363788529,1748872242859,-430.0,0.00016846,2]
[363788531,1748872242868,-435.52486214,0.00016846,2]
[363788534,1748872242878,-430.0,0.00016846,2]
[363788535,1748872242887,-273.85864678,0.00016846,2]
[363788538,1748872242896,-430.0,0.00016846,2]
[363788540,1748872242906,-430.0,0.00016846,2]
[363788542,1748872242915,-238.22523127,0.00016846,2]
[363788544,1748872242925,-430.0,0.00016846,2]
[363788546,1748872242934,-430.0,0.00016846,2]
[363788548,1748872242944,-430.0,0.00016846,2]
[363788550,1748872242953,-430.0,0.00016846,2]
[363788552,1748872242963,-286.53535668,0.00016846,2]
[363788554,1748872242973,-295.52867336,0.00016846,2]
[363788557,1748872242982,-455.52562561,0.00016846,2]
[363788559,1748872242991,-430.0,0.00016846,2]
[363788561,1748872243001,-430.0,0.00016846,2]
[363788563,1748872243015,-253.51187067,0.00016846,2]
[363788565,1748872243026,-461.13908045,0.00016846,2]
[363788567,1748872243039,-430.0,0.00016846,2]
[363788569,1748872243048,-430.0,0.00016846,2]
[363788570,1748872243058,-279.04152307,0.00016846,2]
[363788572,1748872243069,-430.0,0.00016846,2]
[363788574,1748872243079,-219.33834995,0.00017068,2]
[363788576,1748872243088,-430.0,0.00017115,2]
[363788577,1748872243098,-430.0,0.00017115,2]
[363788579,1748872243108,-1058.41,0.00017115,2]
[363788581,1748872243118,-545.86,0.00017115,2]
[363788583,1748872243128,-510.15,0.00017115,2]
[363788585,1748872243137,-575.87,0.00017115,2]
[363788587,1748872243147,-1011.77,0.00017115,2]
[363788589,1748872243167,-430.0,0.00017116,2]
[363788591,1748872243176,-430.0,0.00017116,2]
[363788593,1748872243186,-430.0,0.00017116,2]
[363788594,1748872243195,-430.0,0.00017116,2]
[363788596,1748872243205,-430.0,0.00017116,2]
[363788598,1748872243216,-430.0,0.00017116,2]
[363788600,1748872243225,-430.0,0.00017116,2]
[363788602,1748872243234,-656.08,0.00017117,2]
[363788604,1748872243244,-430.0,0.00017117,2]
[363788606,1748872243253,-430.0,0.00017117,2]
[363788607,1748872243265,-430.0,0.00017117,2]
[363788609,1748872243275,-430.0,0.00017117,2]
[363788611,1748872243285,-430.0,0.00017117,2]
[363788613,1748872243296,-691.05,0.00017117,2]
[363788615,1748872243305,-430.0,0.00017117,2]
[363788616,1748872243315,-430.0,0.00017117,2]
[363788618,1748872243324,-430.0,0.00017117,2]
[363788620,1748872243333,-430.0,0.00017117,2]
[363788622,1748872243343,-430.0,0.00017117,2]
[363788623,1748872243353,-430.0,0.00017117,2]
[363788625,1748872243362,-430.0,0.00017117,2]
[363788627,1748872243372,-430.0,0.00017117,2]
[363788629,1748872243381,-430.0,0.00017117,2]
[363788631,1748872243391,-430.0,0.00017117,2]
[363788632,1748872243401,-430.0,0.00017117,2]
[363788634,1748872243410,-1420.09,0.00017117,2]
[363788636,1748872243420,-845.14,0.00017117,2]
[363788638,1748872243430,-430.0,0.00017117,2]
[363788639,1748872243440,-430.0,0.00017118,2]
[363788641,1748872243450,-500.0,0.00017118,2]
[363788643,1748872243459,-430.0,0.00017119,2]
[363788646,1748872243469,-430.0,0.0001712,2]
[363788649,1748872243479,-430.0,0.0001712,2]
[363788652,1748872243490,-430.0,0.0001712,2]
[363788655,1748872243500,-1814.36071421,0.000172,2]
[363788658,1748872243512,-1814.36071417,0.000172,2]
[363788661,1748872243522,-1814.36071417,0.00017383,2]
[363788664,1748872243532,-430.0,0.00017389,2]
[363788665,1748872243541,-430.0,0.00017389,2]
[363788667,1748872243551,-1058.41,0.00017389,2]
[363788669,1748872243561,-545.86,0.00017389,2]
[363788671,1748872243570,-510.15,0.00017389,2]
[363788673,1748872243580,-575.87,0.00017389,2]
[363788675,1748872243590,-1011.77,0.00017389,2]
[363788676,1748872243599,-430.0,0.0001739,2]
[363788678,1748872243607,-430.0,0.0001739,2]
[363788680,1748872243617,-430.0,0.0001739,2]
[363788682,1748872243627,-430.0,0.0001739,2]
[363788684,1748872243636,-656.08,0.00017391,2]
[363788685,1748872243645,-430.0,0.00017391,2]
[363788687,1748872243654,-481.63,0.00017391,2]
[363788689,1748872243664,-430.0,0.00017391,2]
[363788691,1748872243673,-691.05,0.00017391,2]
[363788693,1748872243682,-430.0,0.00017391,2]
[363788695,1748872243692,-192.20589207,0.00017391,2]
[363788697,1748872243701,-430.0,0.00017391,2]
[363788698,1748872243711,-430.0,0.00017391,2]
[363788700,1748872243720,-430.0,0.00017391,2]
[363788702,1748872243730,-430.0,0.00017391,2]
[363788704,1748872243739,-430.0,0.00017391,2]
[363788706,1748872243749,-430.0,0.00017391,2]
[363788708,1748872243759,-430.0,0.00017391,2]
[363788710,1748872243769,-1420.09,0.00017391,2]
[363788711,1748872243779,-845.14,0.00017391,2]
[363788713,1748872243788,-430.0,0.00017391,2]
[363788715,1748872243797,-430.0,0.00017392,2]
[363788717,1748872243807,-430.0,0.00017394,2]
[363788719,1748872243816,-1814.36071417,0.00017624,2]
[363788721,1748872243825,-430.0,0.00017663,2]
[363788723,1748872243835,-174.98,0.00017663,2]
[363788725,1748872243844,-1058.41,0.00017663,2]
[363788726,1748872243854,-545.86,0.00017663,2]
[363788728,1748872243863,-510.15,0.00017663,2]
[363788730,1748872243873,-575.87,0.00017663,2]
[363788732,1748872243882,-1011.77,0.00017663,2]
[363788734,1748872243891,-430.0,0.00017664,2]
[363788736,1748872243901,-430.0,0.00017664,2]
[363788737,1748872243911,-430.0,0.00017664,2]
[363788739,1748872243920,-308.47,0.00017664,2]
[363788741,1748872243930,-430.0,0.00017664,2]
[363788743,1748872243939,-656.08,0.00017665,2]
[363788745,1748872243949,-430.0,0.00017665,2]
[363788747,1748872243958,-430.0,0.00017665,2]
[363788749,1748872243968,-691.05,0.00017665,2]
[363788750,1748872243977,-240.10436084,0.00017665,2]
[363788752,1748872243986,-430.0,0.00017665,2]
[363788754,1748872243996,-430.0,0.00017665,2]
[363788756,1748872244008,-430.0,0.00017665,2]
[363788758,1748872244018,-430.0,0.00017665,2]
[363788760,1748872244030,-430.0,0.00017665,2]
[363788762,1748872244039,-430.0,0.00017665,2]
[363788764,1748872244049,-430.0,0.00017665,2]
[363788765,1748872244059,-1420.09,0.00017665,2]
[363788767,1748872244073,-845.14,0.00017665,2]
[363788769,1748872244083,-430.0,0.00017665,2]
[363788771,1748872244092,-430.0,0.00017666,2]
[363788773,1748872244103,-430.0,0.00017668,2]
[363788775,1748872244112,-500.0,0.000178,2]
[363788776,1748872244121,-261.2816175,0.00017808,2]
[363788778,1748872244131,-1814.36071417,0.00017866,2]
[363788780,1748872244142,-430.0,0.00017937,2]
[363788782,1748872244152,-1058.41,0.00017937,2]
[363788784,1748872244161,-545.86,0.00017937,2]
[363788786,1748872244171,-510.15,0.00017937,2]
[363788788,1748872244180,-575.87,0.00017937,2]
[363788790,1748872244191,-1011.77,0.00017937,2]
[363788792,1748872244200,-430.0,0.00017938,2]
[363788793,1748872244210,-430.0,0.00017938,2]
[363788795,1748872244220,-430.0,0.00017938,2]
[363788797,1748872244229,-430.0,0.00017938,2]
[363788799,1748872244239,-656.08,0.00017939,2]
[363788801,1748872244248,-430.0,0.00017939,2]
[363788803,1748872244258,-430.0,0.00017939,2]
[363788804,1748872244268,-691.05,0.00017939,2]
[363788806,1748872244279,-430.0,0.00017939,2]
[363788808,1748872244289,-430.0,0.00017939,2]
[363788810,1748872244299,-430.0,0.00017939,2]
[363788812,1748872244308,-430.0,0.00017939,2]
[363788814,1748872244317,-497.47,0.00017939,2]
[363788816,1748872244327,-430.0,0.00017939,2]
[363788817,1748872244336,-430.0,0.00017939,2]
[363788819,1748872244346,-1420.09,0.00017939,2]
[363788821,1748872244355,-845.14,0.00017939,2]
[363788823,1748872244365,-430.0,0.00017939,2]
[363788825,1748872244374,-430.0,0.0001794,2]
[363788827,1748872244384,-430.0,0.00017942,2]
[363788829,1748872244395,-1814.36071417,0.00018107,2]
[363788831,1748872244404,-169.40272109,0.00018182,2]
[363788832,1748872244414,-430.0,0.00018211,2]
[363788834,1748872244423,-1058.41,0.00018211,2]
[363788836,1748872244432,-545.86,0.00018211,2]
[363788838,1748872244441,-510.15,0.00018211,2]
[363788840,1748872244451,-575.87,0.00018211,2]
[363788842,1748872244460,-1011.77,0.00018211,2]
[363788843,1748872244470,-477.31207717,0.00018212,2]
[363788845,1748872244479,-430.0,0.00018212,2]
[363788847,1748872244489,-430.0,0.00018212,2]
[363788849,1748872244498,-430.0,0.00018212,2]
[363788851,1748872244510,-656.08,0.00018213,2]
[363788853,1748872244520,-430.0,0.00018213,2]
[363788854,1748872244529,-430.0,0.00018213,2]
[363788856,1748872244539,-691.05,0.00018213,2]
[363788858,1748872244549,-430.0,0.00018213,2]
[363788860,1748872244558,-490.83897167,0.00018213,2]
[363788862,1748872244568,-430.0,0.00018213,2]
[363788864,1748872244577,-430.0,0.00018213,2]
[363788865,1748872244586,-430.0,0.00018213,2]
[363788867,1748872244597,-430.0,0.00018213,2]
[363788869,1748872244607,-1420.09,0.00018213,2]
[363788871,1748872244616,-845.14,0.00018213,2]
[363788873,1748872244625,-430.0,0.00018213,2]
[363788875,1748872244634,-430.0,0.00018214,2]
[363788877,1748872244644,-430.0,0.00018216,2]
[363788879,1748872244654,-1814.36071417,0.00018348,2]
[363788880,1748872244663,-423.56953423,0.00018392,2]
[363788882,1748872244673,-160.0,0.00018392,2]
[363788884,1748872244683,-160.0,0.00018392,2]
[363788886,1748872244693,-842.5625,0.00018392,2]
[363788888,1748872244702,-160.0,0.00018392,2]
[363788890,1748872244712,-160.0,0.00018392,2]
[363788892,1748872244722,-212.83419937,0.00018392,2]
[363788894,1748872244731,-229.39799938,0.00018392,2]
[363788895,1748872244741,-12668.79298183,0.00018392,2]
[363788897,1748872244750,-160.0,0.00018401,2]
[363788899,1748872244763,-430.0,0.00018485,2]
[363788901,1748872244772,-1058.41,0.00018485,2]
[363788903,1748872244782,-545.86,0.00018485,2]
[363788905,1748872244792,-510.15,0.00018485,2]
[363788907,1748872244802,-575.87,0.00018485,2]
[363788909,1748872244811,-1011.77,0.00018485,2]
[363788910,1748872244820,-430.0,0.00018486,2]
[363788912,1748872244830,-430.0,0.00018486,2]
[363788914,1748872244840,-351.49300588,0.00018486,2]
[363788916,1748872244850,-656.08,0.00018487,2]
[363788918,1748872244860,-430.0,0.00018487,2]
[363788920,1748872244871,-430.0,0.00018487,2]
[363788922,1748872244881,-691.05,0.00018487,2]
[363788924,1748872244891,-430.0,0.00018487,2]
[363788926,1748872244900,-549.37,0.00018487,2]
[363788927,1748872244910,-430.0,0.00018487,2]
[363788929,1748872244920,-430.0,0.00018487,2]
[363788931,1748872244930,-430.0,0.00018487,2]
[363788933,1748872244940,-1420.09,0.00018487,2]
[363788935,1748872244950,-845.14,0.00018487,2]
[363788937,1748872244960,-430.0,0.00018487,2]
[363788939,1748872244969,-430.0,0.00018488,2]
[363788940,1748872244978,-430.0,0.0001849,2]
[363788942,1748872244988,-1814.36071417,0.0001859,2]
[363788944,1748872244998,-500.0,0.0001874,2]
[363788954,1748872245010,-430.0,0.00018759,2]
[363788957,1748872245117,-1058.41,0.00018759,2]
[363788959,1748872245127,-545.86,0.00018759,2]
[363788961,1748872245138,-510.15,0.00018759,2]
[363788963,1748872245147,-575.87,0.00018759,2]
[363788965,1748872245157,-1011.77,0.00018759,2]
[363788967,1748872245167,-430.0,0.0001876,2]
[363788969,1748872245177,-430.0,0.0001876,2]
[363788971,1748872245186,-656.08,0.00018761,2]
[363788973,1748872245195,-430.0,0.00018761,2]
[363788975,1748872245205,-430.0,0.00018761,2]
[363788977,1748872245215,-691.05,0.00018761,2]
[363788979,1748872245224,-430.0,0.00018761,2]
[363788981,1748872245234,-430.0,0.00018761,2]
[363788982,1748872245244,-430.0,0.00018761,2]
[363788983,1748872245255,-430.0,0.00018761,2]
[363788984,1748872245266,-1420.09,0.00018761,2]
[363788985,1748872245276,-845.14,0.00018761,2]
[363788986,1748872245285,-430.0,0.00018761,2]
[363788987,1748872245295,-430.0,0.00018762,2]
[363788988,1748872245305,-430.0,0.00018764,2]
[363788989,1748872245315,-1814.36071417,0.00018831,2]
[363788990,1748872245324,-5000.0,0.00018874,2]
[363788991,1748872245334,-1786.31980904,0.000189,2]
[363788992,1748872245343,-600.0,0.0001898,2]
[363788993,1748872245353,-1400.0,0.00019033,2]
[363788994,1748872245363,-430.0,0.00019033,2]
[363788995,1748872245373,-1058.41,0.00019033,2]
[363788996,1748872245383,-545.86,0.00019033,2]
[363788997,1748872245393,-510.15,0.00019033,2]
[363788998,1748872245403,-575.87,0.00019033,2]
[363788999,1748872245413,-1011.77,0.00019033,2]
[363789000,1748872245423,-430.0,0.00019034,2]
[363789001,1748872245433,-206.45,0.00019034,2]
[363789002,1748872245443,-656.08,0.00019035,2]
[363789003,1748872245452,-430.0,0.00019035,2]
[363789004,1748872245463,-430.0,0.00019035,2]
[363789005,1748872245473,-691.05,0.00019035,2]
[363789006,1748872245483,-430.0,0.00019035,2]
[363789007,1748872245493,-430.0,0.00019035,2]
[363789008,1748872245503,-430.0,0.00019035,2]
[363789009,1748872245514,-430.0,0.00019035,2]
[363789011,1748872245524,-1420.09,0.00019035,2]
[363789012,1748872245534,-845.14,0.00019035,2]
[363789014,1748872245544,-430.0,0.00019035,2]
[363789016,1748872245554,-430.0,0.00019036,2]
[363789018,1748872245564,-430.0,0.00019038,2]
[363789020,1748872245574,-1814.36071417,0.00019072,2]
[363789022,1748872245584,-261.2816175,0.00019144,2]
[363789024,1748872245594,-500.0,0.00019175,2]
[363789026,1748872245604,-500.0,0.00019175,2]
[363789028,1748872245614,-500.0,0.00019175,2]
[363789030,1748872245623,-200.78687768,0.00019175,2]
[363789032,1748872245633,-500.0,0.00019175,2]
[363789034,1748872245642,-500.0,0.00019175,2]
[363789036,1748872245653,-500.0,0.00019175,2]
[363789038,1748872245663,-500.0,0.00019175,2]
[363789040,1748872245672,-500.0,0.00019175,2]
[363789042,1748872245682,-151.0,0.00019175,2]
[363789044,1748872245691,-586.23493578,0.00019178,2]
[363789046,1748872245701,-430.0,0.00019178,2]
[363789048,1748872245711,-430.0,0.00019178,2]
[363789050,1748872245721,-460.61382357,0.00019178,2]